bitfinex/quotes_SOLUSD_20240726
["timestamp","ask_amount","ask_price","bid_price","bid_amount"]
[1721963467306,45.0,176.44,176.39,6.3963]
[1721963467916,50.6679,176.44,176.39,6.3963]
[1721963468414,5.6683,176.42,176.39,6.3963]
[1721963469612,50.6679,176.44,176.39,6.3963]
[1721963469819,45.0,176.44,176.39,6.3963]
[1721963470427,1.41731904,176.43,176.39,6.3963]
[1721963470632,1.41740925,176.42,176.39,6.3963]
[1721963470834,5.6686,176.41,176.39,6.3963]
[1721963471131,5.6686,176.41,176.35,6.0344]
[1721963471339,46.41756094,176.44,176.35,6.0344]
[1721963471516,50.6679,176.44,176.35,11.7048]
[1721963472340,1.41734045,176.43,176.35,11.7048]
[1721963472843,46.41751579,176.44,176.35,6.0344]
[1721963473018,1.41751579,176.42,176.35,6.0344]
[1721963473216,1.41745551,176.42,176.35,6.0344]
[1721963473435,5.6688,176.41,176.35,6.0344]
[1721963473645,46.41760806,176.4,176.35,6.0344]
[1721963473813,46.40759866,176.39,176.27,6.1366]
[1721963474014,5.6702,176.36,176.27,6.1366]
[1721963474234,45.0,176.38,176.3,5.6721]
[1721963474540,45.0,176.4,176.29,16.1073]
[1721963474719,45.0,176.4,176.3,6.48614436]
[1721963474920,30.6576,176.44,176.34,5.6708]
[1721963475127,21.41742603,176.43,176.3,6.1366]
[1721963475325,45.0,176.42,176.31,20.0]
[1721963475741,50.6686,176.42,176.32,5.6714]
[1721963475920,5.6686,176.41,176.32,5.6714]
[1721963476125,50.669,176.4,176.31,25.6718]
[1721963476319,5.669,176.4,176.31,20.0]
[1721963476521,45.0,176.39,176.31,20.0]
[1721963476731,45.0,176.39,176.31,20.34972411]
[1721963477037,45.0,176.39,176.31,20.0]
[1721963477214,32.07559612,176.44,176.33,5.6711]
[1721963477411,5.6686,176.41,176.31,20.0]
[1721963477654,46.41760254,176.4,176.31,25.6715]
[1721963477917,45.0,176.4,176.32,5.6713]
[1721963478239,45.0,176.41,176.33,5.6711]
[1721963478617,1.41750131,176.47,176.37,15.5466]
[1721963478926,5.6656,176.51,176.41,5.6686]
[1721963479254,7.08254289,176.51,176.4,5.6686]
[1721963479415,5.6651,176.52,176.42,5.6682]
[1721963479616,380.5,176.53,176.32,20.0]
[1721963479617,380.5,176.53,176.46,15.453]
[1721963479841,24.99,176.6,176.46,15.453]
[1721963480039,1.41622066,176.64,176.47,51.0734]
[1721963480253,5.6617,176.63,176.49,6.0834]
[1721963480454,380.5,176.66,176.54,5.6644]
[1721963480752,5.6619,176.62,176.5,25.33537195]
[1721963480929,5.6619,176.62,176.51,20.0]
[1721963481243,5.6613,176.64,176.53,15.8506]
[1721963481456,5.6613,176.64,176.53,16.19570179]
[1721963481927,1.41571274,176.63,176.53,15.8506]
[1721963482328,1.41577805,176.66,176.53,15.8506]
[1721963482527,5.6619,176.62,176.53,15.8506]
[1721963482716,5.6629,176.59,176.53,15.8506]
[1721963482918,5.6618,176.63,176.53,15.8506]
[1721963483137,5.6605,176.67,176.54,0.34521731]
[1721963483338,5.6605,176.67,176.55,6.3584]
[1721963483540,5.6605,176.66,176.56,20.0]
[1721963483753,5.6612,176.64,176.56,20.0]
[1721963484129,5.6619,176.62,176.55,6.3584]
[1721963484335,5.6608,176.66,176.55,6.3584]
[1721963484747,5.6602,176.68,176.56,20.0]
[1721963484949,5.6596,176.69,176.57,0.34430362]
[1721963485259,1.41521333,176.68,176.56,20.0]
[1721963485441,1.41543372,176.67,176.56,20.0]
[1721963485646,5.6605,176.67,176.56,20.0]
[1721963485949,5.6612,176.64,176.56,20.0]
[1721963486326,5.6617,176.63,176.55,6.3584]
[1721963486537,1.41568263,176.64,176.55,6.3584]
[1721963487025,5.6625,176.6,176.55,6.3584]
[1721963487227,45.0,176.59,176.55,6.3584]
[1721963487427,46.41605763,176.59,176.55,6.3584]
[1721963487661,46.41605763,176.59,176.42,0.34573065]
[1721963487662,1.41605763,176.59,176.42,22.4766]
[1721963487854,5.6642,176.55,176.42,22.4766]
[1721963488026,50.6644,176.54,176.43,0.34676167]
[1721963488227,1.416422,176.53,176.42,22.4766]
[1721963488431,5.6634,176.57,176.43,0.34691599]
[1721963488628,7.07965178,176.57,176.43,0.34691599]
[1721963488849,45.0,176.56,176.43,0.3463555]
[1721963489056,1.41625178,176.57,176.43,0.3463555]
[1721963489257,5.6638,176.56,176.42,22.82307273]
[1721963489443,45.0,176.55,176.42,22.4766]
[1721963489627,1.41648539,176.59,176.42,22.4766]
[1721963489825,5.6639,176.56,176.43,0.34687503]
[1721963490037,45.0,176.55,176.43,0.34687503]
[1721963490251,50.6641,176.55,176.43,0.34687503]
[1721963490435,45.0,176.55,176.43,20.0]
[1721963490761,45.0,176.55,176.43,20.3467234]
[1721963490930,1.41626851,176.61,176.45,6.4418]
[1721963491257,14.152,176.66,176.46,65.34599455]
[1721963491555,5.6621,176.62,176.46,65.34599455]
[1721963491855,14.152,176.66,176.46,65.34599455]
[1721963492054,5.6639,176.56,176.46,20.0]
[1721963492274,5.6633,176.58,176.46,20.0]
[1721963492434,1.41630505,176.62,176.47,45.0]
[1721963492752,1.41630505,176.62,176.48,70.45538402]
[1721963492937,14.151,176.67,176.49,0.34539781]
[1721963493133,5.6629,176.59,176.48,70.1095]
[1721963493331,14.1532,176.64,176.48,42.0095]
[1721963493639,28.1,176.67,176.49,0.34576651]
[1721963493640,1.41613273,176.63,176.49,0.34576651]
[1721963493842,1.41613273,176.63,176.49,45.34576651]
[1721963494154,46.41613273,176.63,176.5,20.0]
[1721963494328,46.41613273,176.63,176.51,0.34515149]
[1721963494525,45.0,176.63,176.51,0.34515149]
[1721963494726,50.6613,176.64,176.5,20.34515192]
[1721963495062,1.41576968,176.63,176.5,20.34515192]
[1721963495260,7.07736968,176.63,176.5,20.34515192]
[1721963495467,45.0,176.64,176.5,20.34515192]
[1721963495750,46.41575096,176.64,176.5,20.34515192]
[1721963495959,46.41575096,176.64,176.5,20.0]
[1721963496154,46.41575096,176.64,176.49,20.34559354]
[1721963496757,5.6618,176.62,176.49,20.0]
[1721963496961,45.0,176.61,176.5,0.34583013]
[1721963497160,1.41593771,176.63,176.5,0.34583013]
[1721963497457,1.41575007,176.69,176.52,28.1]
[1721963497662,5.6596,176.69,176.53,42.30489155]
[1721963497827,1.41538543,176.68,176.54,45.0]
[1721963498130,28.1,176.75,176.55,20.34427227]
[1721963498131,1.41538377,176.74,176.55,20.34427227]
[1721963498334,1.41538538,176.73,176.55,20.34427227]
[1721963498835,5.6609,176.65,176.55,20.0]
[1721963499047,5.6605,176.67,176.54,20.0]
[1721963499354,1.41561421,176.7,176.54,20.0]
[1721963499563,46.41561421,176.7,176.54,20.0]
[1721963499769,5.6598,176.69,176.55,0.34461156]
[1721963499938,45.0,176.68,176.56,6.6409]
[1721963500145,5.6603,176.67,176.57,20.0]
[1721963500361,50.6605,176.66,176.57,20.0]
[1721963500570,256.6,176.85,176.62,6.6409]
[1721963500759,1.41441272,176.83,176.7,22.7721]
[1721963500959,16.2689146,176.87,176.71,20.0]
[1721963501261,5.6555,176.82,176.71,20.0]
[1721963501446,1.41454759,176.81,176.71,20.0]
[1721963501764,5.6561,176.8,176.7,22.7721]
[1721963501949,5.657,176.77,176.7,22.7721]
[1721963502154,14.1382,176.83,176.7,22.7721]
[1721963502464,5.6564,176.79,176.7,22.7721]
[1721963502691,1.41471854,176.78,176.7,22.7721]
[1721963503757,46.41471854,176.78,176.7,22.7721]
[1721963504546,1.41472241,176.77,176.7,22.7721]
[1721963504745,5.6561,176.8,176.7,22.7721]
[1721963504951,1.41481865,176.77,176.7,22.7721]
[1721963505250,1.41490516,176.76,176.7,6.6409]
[1721963506146,1.41493833,176.82,176.7,6.6409]
[1721963506455,5.6577,176.75,176.7,6.6409]
[1721963506639,46.41494763,176.74,176.65,6.3593]
[1721963506840,1.41516042,176.73,176.65,6.3593]
[1721963508340,7.07356042,176.73,176.65,6.3593]
[1721963508548,45.0,176.72,176.65,6.3593]
[1721963508972,46.41524288,176.72,176.65,6.3593]
[1721963509868,52.07404288,176.72,176.65,6.3593]
[1721963510062,1.41528534,176.71,176.65,6.3593]
[1721963510377,5.6572,176.77,176.65,6.3593]
[1721963510551,46.41504518,176.76,176.65,6.3593]
[1721963510746,52.07244518,176.76,176.65,6.3593]
[1721963510942,46.41504518,176.76,176.65,6.3593]
[1721963511253,1.41503026,176.76,176.66,20.0]
[1721963511454,5.6566,176.79,176.66,20.0]
[1721963511745,1.41477335,176.81,176.69,28.1]
[1721963512362,5.6561,176.8,176.69,28.1]
[1721963512567,1.41458985,176.79,176.69,28.1]
[1721963513178,45.0,176.79,176.69,28.1]
[1721963513549,5.6561,176.8,176.69,28.1]
[1721963514063,5.6556,176.82,176.69,28.1]
[1721963514271,1.414533,176.82,176.7,26.3256]
[1721963514573,5.6558,176.81,176.7,26.3256]
[1721963514757,1.41454549,176.8,176.7,26.3256]
[1721963514958,7.0713929,176.79,176.7,26.3256]
[1721963515261,5.6557,176.82,176.7,26.3256]
[1721963515463,5.6561,176.8,176.7,6.3256]
[1721963515657,5.6567,176.78,176.7,6.3256]
[1721963515852,45.0,176.77,176.7,6.3256]
[1721963516874,5.6573,176.76,176.7,6.3256]
[1721963517372,45.0,176.77,176.7,6.3256]
[1721963517770,1.41470249,176.79,176.7,6.3256]
[1721963517967,45.0,176.78,176.7,6.3256]
[1721963518276,5.6574,176.76,176.7,6.3256]
[1721963518494,45.0,176.75,176.7,6.3256]
[1721963519360,45.0,176.76,176.7,6.3256]
[1721963519563,1.41485269,176.82,176.7,6.3256]
[1721963519764,1.41482354,176.81,176.7,6.3256]
[1721963520772,5.6564,176.79,176.7,6.3256]
[1721963520962,45.0,176.78,176.7,6.3256]
[1721963521362,7.07174846,176.77,176.7,6.3256]
[1721963521681,1.41475875,176.77,176.7,6.3256]
[1721963522284,45.0,176.78,176.7,6.3256]
[1721963523572,46.41470843,176.79,176.7,6.3256]
[1721963524358,5.6557,176.82,176.7,6.3256]
[1721963524578,45.0,176.81,176.7,6.3256]
[1721963524776,1.41449265,176.8,176.7,6.3256]
[1721963524978,7.06994755,176.82,176.7,6.3256]
[1721963525207,30.4040146,176.87,176.71,0.34183643]
[1721963525496,5.6554,176.83,176.71,0.34183643]
[1721963526186,5.6558,176.81,176.75,24.91]
[1721963526688,1.41437079,176.84,176.75,24.91]
[1721963527395,5.6565,176.79,176.75,24.91]
[1721963527595,5.6558,176.81,176.75,24.91]
[1721963528168,5.6558,176.81,176.76,22.1056]
[1721963528489,0.7938146,176.87,176.76,22.1056]
[1721963528795,5.6545,176.85,176.76,22.1056]
[1721963529088,1.41417456,176.84,176.76,22.1056]
[1721963529792,5.6542,176.86,176.76,22.1056]
[1721963529991,45.0,176.85,176.76,22.1056]
[1721963530176,7.06843819,176.86,176.76,22.1056]
[1721963531290,0.7938146,176.87,176.76,22.1056]
[1721963531490,0.7938146,176.87,176.79,28.03]
[1721963531700,0.7938146,176.87,176.81,6.087]
[1721963533274,0.7938146,176.87,176.82,0.34028723]
[1721963533464,0.7938146,176.87,176.83,43.5994]
[1721963533669,386.1519,176.93,176.84,6.5122]
[1721963533670,380.5,176.93,176.84,6.5122]
[1721963533892,256.6,176.97,176.85,0.33945275]
[1721963534068,14.1242,177.01,176.88,6.5122]
[1721963534268,14.1242,177.01,176.89,15.5694]
[1721963534269,5.65,176.99,176.89,15.5694]
[1721963534786,7.06346867,176.98,176.89,15.5694]
[1721963535890,5.6504,176.98,176.89,15.5694]
[1721963536578,1.41311865,176.97,176.89,15.5694]
[1721963537171,5.6504,176.98,176.89,15.5694]
[1721963537572,1.41311619,177.01,176.89,15.5694]
[1721963537993,1.41311548,177.0,176.89,15.5694]
[1721963538271,5.6504,176.98,176.89,15.5694]
[1721963538485,45.0,176.97,176.89,15.5694]
[1721963538888,46.41316783,176.98,176.89,15.5694]
[1721963539085,1.41312508,177.03,176.89,15.5694]
[1721963539372,5.6494,177.01,176.91,6.2161]
[1721963539573,1.41296301,177.0,176.91,6.2161]
[1721963539981,5.6501,176.99,176.91,6.2161]
[1721963540215,7.06266301,177.0,176.91,6.2161]
[1721963540504,7.06301117,176.99,176.91,6.2161]
[1721963540671,46.41304237,176.98,176.91,6.2161]
[1721963540872,52.06334237,176.98,176.91,6.2161]
[1721963541301,4.41383799,177.04,176.91,34.2461]
[1721963541597,5.6487,177.03,176.91,34.2461]
[1721963541802,1.41282358,177.02,176.91,6.2161]
[1721963541975,5.6507,176.97,176.91,6.2161]
[1721963542176,1.41317568,176.96,176.91,6.2161]
[1721963542376,1.41316957,176.95,176.91,6.2161]
[1721963543575,45.0,176.96,176.91,6.2161]
[1721963544278,1.41317204,176.99,176.91,6.2161]
[1721963544484,7.06353401,176.98,176.91,6.2161]
[1721963544690,45.0,176.97,176.91,6.2161]
[1721963545894,50.6506,176.97,176.91,6.2161]
[1721963546284,45.0,176.97,176.91,6.2161]
[1721963546691,50.6506,176.97,176.91,6.2161]
[1721963546909,45.0,176.97,176.91,6.2161]
[1721963547716,1.41310643,177.0,176.91,6.2161]
[1721963547907,7.06310643,177.0,176.91,6.2161]
[1721963548099,5.65,176.99,176.91,6.2161]
[1721963548283,5.6497,177.0,176.91,6.2161]
[1721963548482,7.06309228,176.99,176.91,6.2161]
[1721963548700,5.65,176.99,176.91,6.2161]
[1721963549005,5.6496,177.01,176.91,6.2161]
[1721963549205,2.20665027,177.04,176.97,6.397]
[1721963549788,5.6492,177.02,176.97,6.397]
[1721963549997,1.41274739,177.01,176.9,6.397]
[1721963550199,5.651,176.96,176.9,6.397]
[1721963550410,1.41326201,176.98,176.9,6.397]
[1721963551009,7.06386201,176.98,176.9,6.397]
[1721963551209,45.0,176.97,176.9,6.397]
[1721963552083,50.6507,176.97,176.9,6.397]
[1721963552285,45.0,176.97,176.9,6.397]
[1721963552583,7.06436288,176.96,176.9,6.397]
[1721963552784,45.0,176.95,176.9,6.397]
[1721963553086,50.6513,176.95,176.9,6.397]
[1721963553283,45.0,176.95,176.9,6.397]
[1721963553500,5.6525,176.91,176.9,6.397]
[1721963553692,5.6525,176.91,176.86,6.3799]
[1721963553693,5.6532,176.9,176.86,6.3799]
[1721963554000,1.41364358,176.94,176.86,6.3799]
[1721963554312,5.653,176.9,176.86,6.3799]
[1721963554485,5.6526,176.91,176.86,6.3799]
[1721963554684,5.6523,176.92,176.86,6.3799]
[1721963554897,1.41367281,176.92,176.86,6.3799]
[1721963555300,5.654,176.87,176.81,6.412]
[1721963555493,45.0,176.86,176.81,6.412]
[1721963555811,5.6548,176.84,176.81,6.412]
[1721963556119,45.0,176.83,176.76,6.5778]
[1721963556289,1.41422014,176.83,176.76,6.5778]
[1721963556495,1.41422088,176.85,176.76,6.5778]
[1721963556695,5.6552,176.83,176.76,6.5778]
[1721963556896,46.41435279,176.82,176.76,6.5778]
[1721963557696,1.41435279,176.82,176.76,6.5778]
[1721963557898,46.41436046,176.83,176.76,6.5778]
[1721963558113,1.41421583,176.85,176.76,6.5778]
[1721963558412,1.41412929,176.9,176.76,6.5778]
[1721963558609,5.6539,176.87,176.76,6.5778]
[1721963558798,46.4141284,176.86,176.76,6.5778]
[1721963559003,1.4141284,176.85,176.76,6.5778]
[1721963559205,5.6549,176.84,176.76,6.5778]
[1721963559418,46.41433767,176.83,176.76,6.5778]
[1721963559604,45.0,176.83,176.76,6.5778]
[1721963560595,46.41431418,176.83,176.76,6.5778]
[1721963561228,1.41431418,176.83,176.76,6.5778]
[1721963561408,45.0,176.84,176.76,6.5778]
[1721963561935,1.41432348,176.9,176.76,31.4478]
[1721963562133,256.6,176.93,176.79,24.87]
[1721963562429,1.41378729,176.92,176.79,24.87]
[1721963562648,5.6532,176.89,176.79,24.87]
[1721963562801,1.41384209,176.91,176.79,24.87]
[1721963563316,1.41384209,176.91,176.8,0.34015307]
[1721963564198,52.06644209,176.91,176.8,0.34015307]
[1721963564605,46.41384209,176.91,176.79,24.87]
[1721963564808,5.6536,176.88,176.79,24.87]
[1721963565011,7.06757007,176.88,176.79,24.87]
[1721963565303,45.0,176.87,176.79,24.87]
[1721963565813,45.0,176.88,176.79,24.87]
[1721963566619,45.0,176.89,176.79,24.87]
[1721963566933,262.2522,176.93,176.8,22.37569138]
[1721963567104,262.2522,176.93,176.81,20.0]
[1721963567435,262.2522,176.93,176.82,0.33976931]
[1721963567737,256.6,176.93,176.83,6.548]
[1721963568433,256.6,176.93,176.85,24.87]
[1721963568641,5.6507,176.97,176.86,20.33931018]
[1721963569432,1.41327482,176.96,176.85,24.87]
[1721963569608,5.6517,176.94,176.85,24.87]
[1721963570109,1.41337479,176.95,176.83,6.548]
[1721963570110,46.41337379,176.93,176.83,6.548]
[1721963570309,7.0660867,176.92,176.83,6.548]
[1721963570536,5.6526,176.91,176.83,6.548]
[1721963570720,45.0,176.9,176.83,6.548]
[1721963571517,46.4136712,176.91,176.83,6.548]
[1721963571738,52.0662712,176.91,176.83,6.548]
[1721963571923,46.4136712,176.91,176.83,6.548]
[1721963572246,45.0,176.91,176.83,6.548]
[1721963572417,50.6526,176.91,176.83,6.548]
[1721963572734,1.41366723,176.9,176.83,6.548]
[1721963574724,1.41377064,176.89,176.83,6.548]
[1721963575117,7.06727064,176.89,176.83,6.548]
[1721963575330,50.6535,176.88,176.83,6.548]
[1721963575624,5.6539,176.87,176.83,6.548]
[1721963575831,52.06827718,176.86,176.83,6.548]
[1721963576126,1.41399404,176.85,176.83,6.548]
[1721963576538,7.06849404,176.85,176.79,6.6018]
[1721963576733,50.6549,176.84,176.79,6.6018]
[1721963576934,5.6555,176.82,176.79,6.6018]
[1721963577120,45.0,176.81,176.79,6.6018]
[1721963577629,45.0,176.82,176.79,6.6018]
[1721963578156,45.0,176.83,176.79,6.6018]
[1721963579017,50.6551,176.83,176.79,6.6018]
[1721963579233,45.0,176.83,176.79,6.6018]
[1721963579441,45.0,176.84,176.79,6.6018]
[1721963579647,50.6549,176.84,176.79,6.6018]
[1721963580115,7.06953389,176.83,176.79,6.6018]
[1721963580317,46.4143115,176.82,176.79,6.6018]
[1721963580515,5.6558,176.81,176.75,6.1962]
[1721963580741,46.4143115,176.82,176.75,6.1962]
[1721963580742,46.41452489,176.8,176.75,6.1962]
[1721963580945,46.41447735,176.8,176.75,6.1962]
[1721963581244,45.0,176.8,176.75,6.1962]
[1721963581745,45.0,176.81,176.75,6.1962]
[1721963581944,1.41441789,176.81,176.75,6.1962]
[1721963582319,46.41448144,176.82,176.75,6.1962]
[1721963582848,45.0,176.82,176.75,6.1962]
[1721963583135,45.0,176.83,176.75,6.1962]
[1721963583348,1.41440252,176.82,176.75,6.1962]
[1721963584247,7.06838672,176.87,176.75,6.1962]
[1721963584435,1.41438672,176.87,176.75,6.1962]
[1721963584770,1.4140801,176.88,176.76,35.3484]
[1721963584941,1.41386384,176.87,176.76,41.7515]
[1721963585273,380.5,176.9,176.77,6.6081]
[1721963585449,380.5,176.91,176.78,20.0]
[1721963585622,1.41382909,176.9,176.78,20.0]
[1721963586226,7.06672909,176.9,176.78,20.0]
[1721963586428,7.06703036,176.89,176.78,20.0]
[1721963586655,5.6535,176.88,176.78,20.0]
[1721963586835,1.41383036,176.89,176.78,20.0]
[1721963588637,5.6536,176.88,176.78,20.0]
[1721963588828,45.0,176.87,176.78,20.0]
[1721963589024,52.06794904,176.87,176.78,20.0]
[1721963589247,5.6542,176.86,176.77,6.6081]
[1721963589427,46.41417952,176.85,176.77,6.6081]
[1721963589629,1.41417952,176.85,176.77,6.6081]
[1721963590267,5.6552,176.83,176.77,6.6081]
[1721963590456,45.0,176.87,176.77,6.6081]
[1721963590457,52.06971771,176.82,176.77,6.6081]
[1721963590639,7.06979489,176.82,176.77,6.6081]
[1721963590950,45.0,176.81,176.77,6.6081]
[1721963591327,1.41439956,176.8,176.77,6.6081]
[1721963591546,7.07092073,176.79,176.73,6.0199]
[1721963591749,45.0,176.78,176.73,6.0199]
[1721963591959,1.41465086,176.77,176.73,6.0199]
[1721963592766,45.0,176.78,176.73,6.0199]
[1721963593135,46.41468837,176.78,176.73,6.0199]
[1721963593340,1.41475684,176.77,176.73,6.0199]
[1721963593523,45.0,176.78,176.73,6.0199]
[1721963594045,46.41471753,176.78,176.73,6.0199]
[1721963594230,5.6575,176.76,176.73,6.0199]
[1721963594547,50.6578,176.75,176.69,6.0199]
[1721963594760,5.658,176.74,176.69,6.0199]
[1721963594937,5.6584,176.73,176.69,6.0199]
[1721963595259,45.0,176.72,176.69,6.0199]
[1721963595455,1.41499436,176.71,176.62,6.0199]
[1721963595760,45.0,176.72,176.62,6.0199]
[1721963595761,1.4154832,176.7,176.62,6.0199]
[1721963596357,5.6603,176.67,176.62,6.0199]
[1721963596563,5.6609,176.65,176.62,6.0199]
[1721963596760,7.07652519,176.65,176.62,6.0199]
[1721963597057,50.6614,176.64,176.58,6.0199]
[1721963597358,5.6616,176.63,176.58,6.0199]
[1721963597564,45.0,176.62,176.58,6.0199]
[1721963597856,5.6616,176.63,176.58,6.0199]
[1721963598054,45.0,176.62,176.58,6.0199]
[1721963599041,1.41585473,176.7,176.58,6.0199]
[1721963599239,1.41549921,176.72,176.58,6.0199]
[1721963599448,5.6589,176.72,176.59,0.34401491]
[1721963599650,1.4153458,176.76,176.59,0.34401491]
[1721963599874,1.4153458,176.76,176.6,6.1933]
[1721963600167,1.4153458,176.76,176.61,0.34345741]
[1721963600356,5.6583,176.74,176.61,0.34345741]
[1721963600563,1.41512036,176.73,176.61,20.34345741]
[1721963600868,1.41512005,176.76,176.62,44.1641]
[1721963601072,16.5062,176.82,176.63,26.53649541]
[1721963601364,5.657,176.78,176.63,26.53649541]
[1721963601951,5.657,176.77,176.63,26.53649541]
[1721963602736,1.41483946,176.81,176.63,26.53649541]
[1721963602942,5.6567,176.78,176.63,26.53649541]
[1721963603157,7.07186938,176.77,176.63,26.53649541]
[1721963604162,5.6571,176.77,176.63,26.53649541]
[1721963604972,5.658,176.74,176.63,6.1933]
[1721963605146,45.0,176.73,176.63,6.1933]
[1721963606564,46.41510635,176.73,176.63,6.1933]
[1721963606766,5.659,176.71,176.63,6.1933]
[1721963606961,52.07370635,176.73,176.63,6.1933]
[1721963607160,45.0,176.73,176.63,6.1933]
[1721963607362,45.0,176.74,176.64,0.34339908]
[1721963607547,45.0,176.75,176.64,0.34339908]
[1721963607742,45.0,176.75,176.64,20.34339908]
[1721963607966,1.41480893,176.77,176.64,20.0]
[1721963608173,52.07190893,176.77,176.64,20.0]
[1721963608463,1.41481907,176.76,176.64,20.0]
[1721963608869,5.6586,176.72,176.64,20.0]
[1721963609057,45.0,176.71,176.63,6.1933]
[1721963609376,45.0,176.72,176.64,20.0]
[1721963609561,45.0,176.72,176.63,6.1933]
[1721963609741,1.41514425,176.71,176.63,6.1933]
[1721963609947,45.0,176.72,176.63,6.1933]
[1721963610162,1.41514625,176.71,176.63,6.1933]
[1721963612277,1.41514552,176.7,176.63,6.1933]
[1721963612446,46.41514552,176.7,176.63,6.1933]
[1721963612647,1.41514552,176.7,176.63,6.1933]
[1721963612959,2.19321181,176.77,176.63,6.1933]
[1721963613159,5.6583,176.73,176.63,6.1933]
[1721963613361,1.41503002,176.72,176.63,6.1933]
[1721963614072,52.07373002,176.72,176.63,6.1933]
[1721963614253,1.41509506,176.71,176.63,6.1933]
[1721963614458,1.41508725,176.7,176.63,6.1933]
[1721963614757,1.41509876,176.71,176.63,6.1933]
[1721963615312,45.0,176.72,176.63,6.1933]
[1721963615313,1.4151753,176.7,176.63,6.1933]
[1721963615973,5.66,176.68,176.63,6.1933]
[1721963616175,45.0,176.67,176.63,6.1933]
[1721963616550,45.0,176.68,176.63,6.1933]
[1721963617873,1.4151879,176.76,176.63,6.1933]
[1721963618064,7.0725879,176.76,176.63,6.1933]
[1721963618374,7.07236675,176.76,176.63,6.1933]
[1721963618579,7.07236675,176.76,176.64,20.34308292]
[1721963618872,5.6583,176.74,176.64,20.0]
[1721963619080,1.41501212,176.74,176.64,20.0]
[1721963619290,5.6587,176.72,176.64,20.0]
[1721963619459,45.0,176.71,176.64,20.0]
[1721963620765,45.0,176.72,176.63,6.1933]
[1721963621077,50.6587,176.72,176.63,6.1933]
[1721963621579,5.6594,176.7,176.63,6.1933]
[1721963621755,45.0,176.69,176.63,6.1933]
[1721963621961,1.41536853,176.68,176.63,6.1933]
[1721963622179,50.6597,176.69,176.63,6.1933]
[1721963622180,45.0,176.69,176.63,6.1933]
[1721963627180,1.41511733,176.77,176.64,24.95]
[1721963627368,46.41492631,176.78,176.65,0.34294762]
[1721963627880,45.0,176.78,176.65,0.34294762]
[1721963628086,1.41497863,176.77,176.64,24.95]
[1721963628379,1.41497863,176.77,176.66,6.0827]
[1721963628380,1.41479993,176.76,176.66,6.0827]
[1721963628559,7.07219993,176.76,176.66,6.0827]
[1721963628955,5.6577,176.75,176.66,6.0827]
[1721963629171,1.41479993,176.76,176.66,6.0827]
[1721963629366,5.6571,176.77,176.66,6.0827]
[1721963629773,45.0,176.76,176.66,6.0827]
[1721963630567,50.6574,176.76,176.66,6.0827]
[1721963631081,5.6577,176.75,176.66,6.0827]
[1721963631268,45.0,176.74,176.66,6.0827]
[1721963631774,1.41485041,176.73,176.66,6.0827]
[1721963632364,45.0,176.74,176.66,6.0827]
[1721963633278,1.41501088,176.73,176.66,6.0827]
[1721963634201,3.62986732,176.81,176.66,6.0827]
[1721963634372,11.61596734,176.81,176.66,6.0827]
[1721963634986,5.6568,176.78,176.66,6.0827]
[1721963635171,1.41477634,176.78,176.66,6.0827]
[1721963635590,1.41477634,176.78,176.67,24.95]
[1721963636279,5.6566,176.79,176.67,24.95]
[1721963636592,1.41471963,176.79,176.67,24.95]
[1721963636802,5.6574,176.76,176.67,24.95]
[1721963636994,45.0,176.75,176.67,24.95]
[1721963638094,5.6569,176.78,176.67,24.95]
[1721963638281,1.41457773,176.81,176.68,35.4438]
[1721963638486,5.6564,176.79,176.68,35.4438]